bitfinex-derivatives/quotes_BTCF0:USTF0_20250904
["timestamp","ask_amount","ask_price","bid_price","bid_amount"]
[1757003763859,0.04234,109520.0,109510.0,0.32731543]
[1757003764060,1.03334626,109520.0,109510.0,1.18731543]
[1757003764867,0.35234,109520.0,109510.0,1.18731543]
[1757003765067,1.03334626,109520.0,109510.0,1.18731543]
[1757003765963,1.03334626,109520.0,109510.0,0.32731543]
[1757003766276,0.04234,109510.0,109500.0,1.30516]
[1757003766460,0.67284313,109510.0,109500.0,1.30516]
[1757003766773,1.01334626,109510.0,109500.0,1.30516]
[1757003767168,0.67284313,109510.0,109500.0,0.94436]
[1757003767371,0.67284313,109510.0,109500.0,0.86]
[1757003769474,0.67384313,109510.0,109500.0,0.86]
[1757003770071,0.67384313,109510.0,109500.0,1.56130313]
[1757003770572,0.67284313,109510.0,109500.0,1.2208]
[1757003770970,0.67384313,109510.0,109500.0,1.2208]
[1757003771569,0.67384313,109510.0,109500.0,0.3608]
[1757003771869,0.67384313,109510.0,109500.0,1.22084]
[1757003774775,0.67384313,109510.0,109500.0,0.86004]
[1757003775778,0.67384313,109510.0,109490.0,0.43236131]
[1757003775969,0.38241313,109500.0,109490.0,0.77286444]
[1757003776174,0.71241313,109500.0,109490.0,1.63290444]
[1757003779276,0.71241313,109500.0,109490.0,1.63270444]
[1757003779470,0.71341313,109500.0,109490.0,1.63270444]
[1757003779778,0.71856574,109500.0,109490.0,1.63270444]
[1757003780373,0.37806261,109500.0,109490.0,1.63270444]
[1757003780573,0.71856574,109500.0,109490.0,1.63270444]
[1757003781379,0.37806261,109500.0,109490.0,1.63270444]
[1757003781675,0.35179261,109500.0,109490.0,1.54220131]
[1757003781872,0.37806261,109500.0,109490.0,1.54276131]
[1757003782070,0.37806261,109500.0,109490.0,1.88326444]
[1757003783479,0.35179261,109500.0,109490.0,2.14756444]
[1757003786575,0.37806261,109500.0,109490.0,0.94646131]
[1757003786782,1.30906887,109500.0,109490.0,0.3608]
[1757003786982,1.30906887,109500.0,109490.0,1.2208]
[1757003788983,1.30906887,109500.0,109490.0,0.86]
[1757003790580,0.04191,109490.0,109480.0,0.3608]
[1757003790783,0.73241313,109490.0,109480.0,1.22084]
[1757003791583,1.07291626,109490.0,109480.0,1.22088]
[1757003791784,1.07291626,109490.0,109480.0,0.3608]
[1757003791984,0.04191,109480.0,109470.0,1.22088]
[1757003792185,0.68241313,109480.0,109470.0,1.56138313]
[1757003793387,0.68341313,109480.0,109470.0,1.56138313]
[1757003794687,0.68341313,109480.0,109470.0,1.63409717]
[1757003797384,0.34291,109480.0,109470.0,1.63409717]
[1757003797581,0.31664,109480.0,109470.0,1.88409717]
[1757003799089,0.31664,109480.0,109470.0,1.54359404]
[1757003799289,0.31664,109480.0,109470.0,1.88409717]
[1757003801488,0.31664,109480.0,109470.0,1.02401717]
[1757003801689,0.31664,109480.0,109470.0,1.88413717]
[1757003802992,0.31664,109480.0,109470.0,1.02401717]
[1757003803193,0.31664,109480.0,109470.0,1.88409717]
[1757003803798,0.31664,109480.0,109470.0,1.02401717]
[1757003803999,0.31664,109480.0,109470.0,1.88409717]
[1757003804297,0.31664,109480.0,109470.0,1.28831717]
[1757003804492,0.31664,109480.0,109470.0,2.14839717]
[1757003804800,0.31664,109480.0,109470.0,1.80789404]
[1757003805001,0.31664,109480.0,109470.0,2.14839717]
[1757003805404,0.31664,109480.0,109470.0,2.23973537]
[1757003805894,0.31664,109480.0,109470.0,2.3302385]
[1757003806094,0.31664,109480.0,109470.0,1.98973537]
[1757003806602,0.34291,109480.0,109470.0,0.69781404]
[1757003806803,0.68341313,109480.0,109470.0,1.03831717]
[1757003807003,0.68341313,109480.0,109470.0,1.89839717]
[1757003807605,1.27391626,109480.0,109470.0,0.69781404]
[1757003807804,1.27391626,109480.0,109470.0,1.22084]
[1757003808196,0.93341313,109480.0,109470.0,1.22084]
[1757003808705,1.27391626,109480.0,109470.0,0.3608]
[1757003808906,1.27391626,109480.0,109470.0,1.22088]
[1757003809297,1.27391626,109480.0,109470.0,1.22068]
[1757003809497,0.93341313,109480.0,109470.0,1.22068]
[1757003810300,0.93341313,109480.0,109470.0,0.3606]
[1757003810501,0.93341313,109480.0,109470.0,1.22064]
[1757003810502,1.27391626,109480.0,109470.0,1.22064]
[1757003810698,1.27391626,109480.0,109470.0,0.3606]
[1757003811093,0.03957,109470.0,109460.0,1.57688088]
[1757003811300,0.67007313,109470.0,109460.0,0.37922103]
[1757003811499,0.92007313,109470.0,109460.0,1.23926103]
[1757003811806,0.92007313,109470.0,109460.0,1.22084]
[1757003812208,0.92007313,109470.0,109460.0,0.3608]
[1757003812401,0.92007313,109470.0,109460.0,1.22084]
[1757003813906,0.92007313,109470.0,109460.0,1.22088]
[1757003816311,0.57957,109470.0,109460.0,1.22088]
[1757003816500,0.92007313,109470.0,109460.0,1.56138313]
[1757003816909,0.32957,109470.0,109460.0,1.90188626]
[1757003817304,0.32957,109470.0,109460.0,2.15188626]
[1757003817613,0.32957,109470.0,109460.0,1.81168306]
[1757003821312,0.32957,109470.0,109460.0,1.56168306]
[1757003822017,0.32957,109470.0,109460.0,1.82598306]
[1757003823717,0.32773795,109470.0,109460.0,1.82598306]
[1757003824015,0.32773795,109470.0,109460.0,1.82578306]
[1757003824920,0.32773795,109470.0,109460.0,1.4849]
[1757003825611,0.66854101,109470.0,109460.0,0.6249]
[1757003825818,1.25934407,109470.0,109460.0,0.2643]
[1757003826117,0.03957,109460.0,109450.0,1.2208]
[1757003826312,0.71037306,109460.0,109450.0,1.2208]
[1757003827219,0.36957,109460.0,109450.0,1.2208]
[1757003827412,0.71037306,109460.0,109450.0,1.2218]
[1757003827613,0.36957,109460.0,109450.0,1.2218]
[1757003827819,0.36957,109460.0,109450.0,1.2228]
[1757003828013,0.71037306,109460.0,109450.0,1.2228]
[1757003828621,0.36957,109460.0,109450.0,1.2228]
[1757003828828,0.36957,109460.0,109450.0,1.56360306]
[1757003830521,0.36957,109460.0,109450.0,1.2228]
[1757003831218,0.37957,109460.0,109450.0,1.2228]
[1757003833620,0.37957,109460.0,109450.0,1.56360306]
[1757003834834,0.34957,109460.0,109450.0,1.56360306]
[1757003835118,0.34957,109460.0,109450.0,1.2228]
[1757003835421,0.34957,109460.0,109450.0,1.56360306]
[1757003838618,0.32519,109460.0,109450.0,1.65495796]
[1757003839025,0.31,109460.0,109450.0,2.16925796]
[1757003839214,0.31,109460.0,109450.0,1.90495796]
[1757003839411,0.31,109460.0,109450.0,2.01976244]
[1757003839922,0.31,109460.0,109450.0,2.01988715]
[1757003840619,0.01564,109490.0,109460.0,0.0913382]
[1757003840825,0.36096,109490.0,109480.0,0.70160306]
[1757003841521,0.36096,109490.0,109480.0,1.2206]
[1757003842226,0.36096,109490.0,109480.0,1.56140306]
[1757003842817,0.36096,109490.0,109480.0,0.70160306]
[1757003843025,0.36096,109490.0,109480.0,1.56136306]
[1757003844225,0.36196,109490.0,109480.0,1.56136306]
[1757003845030,0.36196,109490.0,109480.0,0.70160306]
[1757003845231,0.36196,109490.0,109480.0,1.56128306]
[1757003845525,0.36196,109490.0,109480.0,0.70160306]
[1757003845725,0.70276306,109490.0,109480.0,1.22044]
[1757003846128,0.70276306,109490.0,109480.0,0.3608]
[1757003846526,0.03978,109480.0,109470.0,0.3608]
[1757003846826,0.72058306,109480.0,109470.0,1.2204]
[1757003847415,0.72058306,109480.0,109470.0,0.3608]
[1757003847620,0.72058306,109480.0,109470.0,1.2204]
[1757003847821,0.72158306,109480.0,109470.0,1.2204]
[1757003848021,0.38078,109480.0,109470.0,1.2204]
[1757003848222,0.38078,109480.0,109470.0,1.56120306]
[1757003848622,0.38078,109480.0,109470.0,1.2204]
[1757003849326,0.38078,109480.0,109470.0,1.56120306]
[1757003850916,0.38078,109480.0,109470.0,0.70160306]
[1757003851120,0.38078,109480.0,109470.0,2.15192612]
[1757003851326,0.35546,109480.0,109470.0,2.15192612]
[1757003851530,0.35546,109480.0,109470.0,1.81112306]
[1757003851827,0.35546,109480.0,109470.0,2.07542306]
[1757003852419,0.35546,109480.0,109470.0,2.16676126]
[1757003852823,0.35546,109480.0,109470.0,2.50756432]
[1757003854132,0.35446,109480.0,109470.0,2.50756432]
[1757003855133,0.35446,109480.0,109470.0,2.16676126]
[1757003855336,0.35446,109480.0,109470.0,2.16776126]
[1757003855629,0.35446,109480.0,109470.0,2.07642306]
[1757003855830,0.35446,109480.0,109470.0,2.16776126]
[1757003857033,0.35446,109480.0,109470.0,1.73562]
[1757003857234,0.35446,109480.0,109470.0,2.07642306]
[1757003858135,0.34,109480.0,109470.0,2.07642306]
[1757003858338,0.341,109480.0,109470.0,2.41622612]
[1757003859423,0.341,109480.0,109470.0,2.50756432]
[1757003860337,0.34,109480.0,109470.0,2.50756432]
[1757003860536,0.34,109480.0,109470.0,2.50856432]
[1757003860926,0.35446,109480.0,109470.0,1.64904432]
[1757003861133,0.35446,109480.0,109470.0,2.41694612]
[1757003861634,0.35446,109480.0,109470.0,2.07614306]
[1757003861834,0.35446,109480.0,109470.0,2.16748126]
[1757003862536,0.34,109480.0,109470.0,2.50828432]
[1757003863126,0.35446,109480.0,109470.0,2.41694612]
[1757003863733,0.35446,109480.0,109470.0,2.50828432]
[1757003863936,0.35446,109480.0,109470.0,2.41694612]
[1757003864440,0.37978,109480.0,109470.0,0.6261]
[1757003864744,0.37978,109480.0,109470.0,1.82602306]
[1757003866643,0.37978,109480.0,109470.0,0.96590306]
[1757003866842,0.38078,109480.0,109470.0,1.82502306]
[1757003870642,0.38078,109480.0,109470.0,1.82482306]
[1757003872644,0.35546,109480.0,109470.0,1.82482306]
[1757003872845,0.35546,109480.0,109470.0,2.16562612]
[1757003873141,0.35546,109480.0,109470.0,1.82482306]
[1757003873846,0.35446,109480.0,109470.0,1.82482306]
[1757003874242,0.35446,109480.0,109470.0,1.82582306]
[1757003874639,0.35446,109480.0,109470.0,1.82482306]
[1757003874944,0.34,109480.0,109470.0,2.25696492]
[1757003875345,0.35387,109480.0,109470.0,1.05724186]
[1757003875544,0.35387,109480.0,109470.0,1.4839]
[1757003875745,0.37844,109480.0,109470.0,0.96590306]
[1757003876046,0.37944,109480.0,109470.0,1.82466306]
[1757003876940,0.37944,109480.0,109470.0,1.82566306]
[1757003877647,0.37944,109480.0,109470.0,1.82466306]
[1757003877841,0.37944,109480.0,109470.0,0.96590306]
[1757003878148,0.37944,109480.0,109470.0,1.82458306]
[1757003879452,0.37944,109480.0,109470.0,1.82453741]
[1757003881044,0.37944,109480.0,109470.0,1.9394666]
[1757003882149,0.37944,109480.0,109470.0,1.9393466]
[1757003882447,0.37844,109480.0,109470.0,1.82441741]
[1757003883248,0.37844,109480.0,109470.0,1.82541741]
[1757003883448,0.37844,109480.0,109470.0,0.96685741]
[1757003883651,0.37844,109480.0,109470.0,1.82533741]
[1757003883950,0.37844,109480.0,109470.0,1.82433741]
[1757003884150,0.37944,109480.0,109470.0,1.82433741]
[1757003884452,1.31095482,109480.0,109470.0,0.2643]
[1757003884654,0.01387,109470.0,109460.0,1.2079466]
[1757003884844,0.65462741,109470.0,109460.0,1.2079466]
[1757003885150,0.65462741,109470.0,109460.0,2.0663866]
[1757003885650,0.65462741,109470.0,109460.0,1.95145741]
[1757003886049,0.31387,109470.0,109460.0,2.29221482]
[1757003886439,0.31387,109470.0,109460.0,2.29321482]
[1757003886948,0.31387,109470.0,109460.0,2.72531893]
[1757003887253,0.3,109470.0,109460.0,2.38456152]
[1757003887456,0.3,109470.0,109460.0,2.25740152]
[1757003887755,0.3,109470.0,109460.0,2.16605482]
[1757003887954,0.31387,109470.0,109460.0,2.28094401]
[1757003888154,0.31387,109470.0,109460.0,1.59942919]
[1757003888754,0.31387,109470.0,109460.0,2.16601482]
[1757003888954,0.31387,109470.0,109460.0,2.25736122]
[1757003889254,0.31387,109470.0,109460.0,2.16601482]
[1757003889756,0.31387,109470.0,109460.0,2.25736122]
[1757003889951,0.31387,109470.0,109460.0,1.39896122]
[1757003890146,0.31387,109470.0,109460.0,2.16593482]
[1757003890547,0.33844,109470.0,109460.0,1.48442]
[1757003890852,0.33844,109470.0,109460.0,2.16593482]
[1757003891354,0.31387,109470.0,109460.0,2.25728092]
[1757003891852,0.31387,109470.0,109460.0,2.25724092]
[1757003892445,0.31387,109470.0,109460.0,2.59799833]
[1757003892446,0.3,109470.0,109460.0,2.59799833]
[1757003892651,0.3,109470.0,109460.0,2.25724092]
[1757003893854,0.3,109470.0,109460.0,2.25824092]
[1757003894449,0.3,109470.0,109460.0,2.59899833]
[1757003895454,0.3,109470.0,109460.0,2.25724092]
[1757003895649,0.3,109470.0,109460.0,2.25824092]
[1757003896159,0.33843,109470.0,109460.0,0.6271]
[1757003896349,0.31406,109470.0,109460.0,2.16681482]
[1757003896549,0.3,109470.0,109460.0,2.25816092]
[1757003896746,0.3,109470.0,109460.0,2.25716092]
[1757003896949,0.3,109470.0,109460.0,2.25916092]
[1757003897553,0.3,109470.0,109460.0,2.25816092]
[1757003898258,0.3,109470.0,109460.0,1.39996092]
[1757003898451,0.3,109470.0,109460.0,2.25812092]
[1757003898959,0.3,109470.0,109460.0,2.25712092]
[1757003899355,0.3,109470.0,109460.0,2.25612092]
[1757003899558,0.3,109470.0,109460.0,2.25812092]
[1757003899853,0.31406,109470.0,109460.0,1.39996092]
[1757003900157,0.31406,109470.0,109460.0,2.25808092]
[1757003900356,0.31406,109470.0,109460.0,2.25908092]
[1757003901059,0.3,109470.0,109460.0,2.25908092]
[1757003901653,0.3,109470.0,109460.0,2.71476752]
[1757003901857,0.3,109470.0,109460.0,2.96276752]
[1757003902057,0.3,109470.0,109460.0,2.84883833]
[1757003902253,0.3,109470.0,109460.0,2.84779833]
[1757003902460,0.3,109470.0,109460.0,2.96279171]
[1757003903055,0.3,109470.0,109460.0,2.96179171]
[1757003903257,0.3,109470.0,109460.0,2.96379171]
[1757003903565,0.3,109470.0,109460.0,2.96479171]
[1757003904163,0.3,109470.0,109460.0,2.96379171]
[1757003904358,0.3,109470.0,109460.0,2.96479171]
[1757003905068,0.3,109470.0,109460.0,3.09743171]
[1757003905662,0.3,109470.0,109460.0,3.09543171]
[1757003905859,0.3,109470.0,109460.0,3.09539171]
[1757003906062,0.3,109470.0,109460.0,3.09639171]
[1757003906365,0.3,109470.0,109460.0,3.09539171]
[1757003906564,0.3,109470.0,109460.0,3.09739171]
[1757003906764,0.3,109470.0,109460.0,2.98239833]
[1757003907767,0.3,109470.0,109460.0,2.73239833]
[1757003907958,0.3,109470.0,109460.0,2.84739171]
[1757003908355,0.01564,109490.0,109470.0,0.0913315]
[1757003908561,0.31564,109490.0,109480.0,2.37608451]
[1757003908957,0.31564,109490.0,109480.0,2.26111482]
[1757003909362,0.34001,109490.0,109480.0,2.26111482]
[1757003910767,0.34101,109490.0,109480.0,2.26111482]
[1757003911064,0.34101,109490.0,109480.0,2.52541482]
[1757003913067,0.34101,109490.0,109480.0,2.61674472]
[1757003913274,0.31664,109490.0,109480.0,2.61674472]
[1757003913668,0.301,109490.0,109480.0,2.95750213]
[1757003914374,0.301,109490.0,109480.0,3.07247182]
[1757003914566,0.301,109490.0,109480.0,2.21447182]
[1757003914766,0.301,109490.0,109480.0,3.07235182]
[1757003915265,0.301,109490.0,109480.0,2.73259441]
[1757003915465,0.301,109490.0,109480.0,2.61762472]
[1757003915770,0.31506,109490.0,109480.0,1.66841482]
[1757003915963,0.31406,109490.0,109480.0,1.66841482]
[1757003916169,0.65481741,109490.0,109480.0,2.18553741]
[1757003916368,0.65481741,109490.0,109480.0,2.52629482]
[1757003916569,0.31406,109490.0,109480.0,2.52625482]
[1757003916863,0.31406,109490.0,109480.0,2.64245482]
[1757003917375,0.31506,109490.0,109480.0,1.78461482]
[1757003917574,0.31506,109490.0,109480.0,2.64245482]
[1757003918276,0.31506,109490.0,109480.0,2.64145482]
[1757003918486,0.31506,109490.0,109480.0,1.78361482]
[1757003918686,0.31406,109490.0,109480.0,2.64141482]
[1757003918886,0.31406,109490.0,109480.0,1.9599]
[1757003919185,0.31506,109490.0,109480.0,2.64141482]
[1757003919680,0.31506,109490.0,109480.0,2.52521482]
[1757003919887,0.31406,109490.0,109480.0,2.52521482]
[1757003920086,0.31506,109490.0,109480.0,2.52521482]
[1757003920286,0.31506,109490.0,109480.0,1.8437]
[1757003920588,0.31506,109490.0,109480.0,2.52521482]
[1757003922287,0.31506,109490.0,109480.0,1.66741482]
[1757003922481,0.31506,109490.0,109480.0,2.52517482]
[1757003922681,0.31506,109490.0,109480.0,1.84366]
[1757003922878,0.31506,109490.0,109480.0,2.52517482]
[1757003923588,0.31506,109490.0,109480.0,2.52513482]
[1757003924590,0.301,109490.0,109480.0,2.52513482]
[1757003924782,0.301,109490.0,109480.0,2.61646462]
[1757003925491,0.31493,109490.0,109480.0,2.61646462]
[1757003925690,0.301,109490.0,109480.0,2.61646462]
[1757003925886,0.301,109490.0,109480.0,1.75874462]
[1757003926086,0.3,109490.0,109480.0,2.61642462]
[1757003926286,0.31393,109490.0,109480.0,2.61742462]
[1757003926488,0.3,109490.0,109480.0,1.75974462]
[1757003926688,0.3,109490.0,109480.0,2.95818203]
[1757003927195,0.3,109490.0,109480.0,3.32315172]
[1757003927788,0.3,109490.0,109480.0,2.30087949]
[1757003927992,0.3,109490.0,109480.0,3.32315172]
[1757003928883,0.3,109490.0,109480.0,3.39747172]
[1757003929286,0.3,109490.0,109480.0,3.39739172]
[1757003929488,0.3,109490.0,109480.0,3.56070873]
[1757003929684,0.3,109490.0,109480.0,3.44573904]
[1757003930195,0.3,109490.0,109480.0,3.28242203]
[1757003930395,0.3,109490.0,109480.0,5.04754203]
[1757003932392,0.3,109490.0,109480.0,5.16235678]
[1757003932996,0.3,109490.0,109480.0,5.1687721]
[1757003934300,0.0374,109520.0,109500.0,0.0913132]
[1757003934500,0.3574,109520.0,109510.0,2.26051482]
[1757003935299,0.3574,109520.0,109510.0,1.579]
[1757003935603,0.3584,109520.0,109510.0,1.91975741]
[1757003936198,0.3574,109520.0,109510.0,1.91975741]
[1757003936393,0.3584,109520.0,109510.0,1.91975741]
[1757003936594,0.3584,109520.0,109510.0,1.99351848]
[1757003937099,0.33506,109520.0,109510.0,2.35181962]
[1757003937299,0.32763073,109520.0,109510.0,2.26051482]
[1757003937495,0.32763073,109520.0,109510.0,2.35181962]
[1757003938400,0.32763073,109520.0,109510.0,2.46663437]
[1757003939001,0.32763073,109520.0,109510.0,1.60923437]
[1757003939201,0.32763073,109520.0,109510.0,2.35169962]
[1757003939394,0.34156073,109520.0,109510.0,2.35165962]
[1757003939600,0.34156073,109520.0,109510.0,1.91927548]
[1757003939797,0.34156073,109520.0,109510.0,1.06203548]
[1757003939997,0.34156073,109520.0,109510.0,1.91927548]
[1757003940197,0.34156073,109520.0,109510.0,0.7216]
[1757003940399,0.61490073,109520.0,109510.0,1.57884]
[1757003940602,0.61490073,109520.0,109510.0,1.91927548]
[1757003941302,0.36490073,109520.0,109510.0,1.91927548]
[1757003941497,0.36490073,109520.0,109510.0,1.06203548]
[1757003941693,0.36490073,109520.0,109510.0,0.7216]
[1757003941892,0.95533621,109520.0,109510.0,1.65162277]
[1757003942810,0.95533621,109520.0,109510.0,1.21796]
[1757003943400,0.95533621,109520.0,109510.0,1.3758]
[1757003944207,0.61490073,109520.0,109510.0,1.3758]
[1757003944399,0.95533621,109520.0,109510.0,1.3758]
[1757003947104,0.95533621,109520.0,109510.0,0.51864]
[1757003947309,0.95533621,109520.0,109510.0,1.37576]
[1757003948811,0.95533621,109520.0,109510.0,1.37568]
[1757003949614,0.95533621,109520.0,109510.0,0.51864]
[1757003949812,0.95533621,109520.0,109510.0,1.37568]
[1757003950205,0.61490073,109520.0,109510.0,0.15784]
[1757003950411,0.97570073,109520.0,109510.0,0.15784]
[1757003950907,1.31613621,109520.0,109510.0,0.15784]
[1757003951213,1.31613621,109520.0,109510.0,0.15049]
[1757003951512,1.31613621,109520.0,109510.0,0.14314]
[1757003953406,1.31613621,109520.0,109510.0,0.12844]
[1757003956313,1.31613621,109520.0,109510.0,0.11691768]
[1757003956515,0.97570073,109520.0,109510.0,0.11691768]
[1757003956702,1.31613621,109520.0,109510.0,0.11691768]
[1757003958417,0.014,109500.0,109490.0,1.29087204]
[1757003958615,0.69712548,109500.0,109490.0,1.31482204]
[1757003959911,0.35669,109500.0,109490.0,1.31482204]
[1757003960105,0.35669,109500.0,109490.0,1.65525752]
[1757003960308,0.35669,109500.0,109490.0,1.90525752]
[1757003960809,0.35669,109500.0,109490.0,1.56482204]
[1757003961119,0.35669,109500.0,109490.0,1.90525752]
[1757003961417,0.35669,109500.0,109490.0,1.90625752]
[1757003961917,0.35669,109500.0,109490.0,1.90525752]
[1757003962213,0.35769,109500.0,109490.0,1.90525752]
[1757003970023,0.35769,109500.0,109490.0,1.56482204]
[1757003970622,0.69812548,109500.0,109490.0,1.56482204]
[1757003971015,0.69812548,109500.0,109490.0,0.70670204]
[1757003971222,0.69812548,109500.0,109490.0,1.56386204]
[1757003971617,0.35769,109500.0,109490.0,1.31386204]
[1757003971816,0.69812548,109500.0,109490.0,1.31386204]
[1757003977033,0.35769,109500.0,109490.0,1.31386204]
[1757003977228,0.69812548,109500.0,109490.0,1.31386204]
[1757003978533,0.69812548,109500.0,109490.0,1.31382204]
[1757003980734,0.69812548,109500.0,109490.0,1.24145]
[1757003981333,0.03669,109490.0,109480.0,0.38433]
[1757003981530,0.71712548,109490.0,109480.0,1.24145]
[1757003981833,0.71712548,109490.0,109480.0,1.24141]
[1757003982636,0.71712548,109490.0,109480.0,0.38433]
[1757003982933,0.71712548,109490.0,109480.0,1.24145]
[1757003983235,0.71712548,109490.0,109480.0,1.24245]
[1757003983932,0.71812548,109490.0,109480.0,1.24245]
[1757003984835,0.71812548,109490.0,109480.0,1.24145]
[1757003985139,0.71812548,109490.0,109480.0,1.24141]
[1757003985536,0.71812548,109490.0,109480.0,1.24145]
[1757003986428,0.71812548,109490.0,109480.0,0.3608]
[1757003986627,0.71812548,109490.0,109480.0,1.21792]
[1757003987438,0.37769,109490.0,109480.0,1.21792]
[1757003987638,0.71812548,109490.0,109480.0,1.21792]
[1757003993751,0.96812548,109490.0,109470.0,0.3608]
[1757003993954,0.37695548,109480.0,109470.0,0.87933]
[1757003994144,0.66695548,109480.0,109470.0,0.87933]
[1757003995046,0.66695548,109480.0,109470.0,0.88033]
[1757003996355,0.66695548,109480.0,109470.0,0.02329]
[1757003996559,0.66695548,109480.0,109470.0,0.88033]
[1757003997154,0.66795548,109480.0,109470.0,0.88033]
[1757003997950,0.66795548,109480.0,109470.0,0.87933]
[1757003999450,0.66795548,109480.0,109470.0,0.02229]
[1757003999650,0.66795548,109480.0,109470.0,0.87933]
[1757004001456,1.009245,109480.0,109470.0,0.87933]
[1757004002951,0.32752,109480.0,109470.0,0.87933]
[1757004003257,1.009245,109480.0,109470.0,0.87933]
[1757004005459,1.009245,109480.0,109470.0,0.02229]
[1757004005654,1.009245,109480.0,109470.0,0.87929]
[1757004005860,1.009245,109480.0,109460.0,0.38309]
[1757004005861,0.03652,109470.0,109460.0,0.38309]
[1757004006062,1.068245,109470.0,109460.0,1.24005]
[1757004006355,0.7273825,109470.0,109460.0,0.87925]
[1757004006657,1.0873825,109470.0,109460.0,0.87925]
[1757004007055,1.0873825,109470.0,109460.0,0.02229]
[1757004007359,1.0873825,109470.0,109460.0,0.87925]
[1757004007854,1.428245,109470.0,109460.0,0.88025]
[1757004008049,1.0873825,109470.0,109460.0,0.88025]
[1757004008254,1.428245,109470.0,109460.0,0.02329]
[1757004008555,1.789045,109470.0,109460.0,0.001]
[1757004008755,2.039045,109470.0,109460.0,0.001]
[1757004012357,2.039045,109470.0,109440.0,0.3609]
[1757004012563,2.039045,109470.0,109430.0,0.38319]
[1757004012564,0.03652,109440.0,109430.0,0.38319]
[1757004012860,1.338245,109440.0,109430.0,0.02229]
[1757004013853,1.336245,109440.0,109430.0,0.02229]
[1757004014152,1.335245,109440.0,109430.0,0.27229]
[1757004014352,1.335245,109440.0,109430.0,0.02229]
[1757004014548,1.34285343,109440.0,109430.0,0.02229]
[1757004017054,2.84285343,109440.0,109430.0,0.02229]
[1757004017665,0.01394,109430.0,109420.0,3.39560751]
[1757004017855,0.9548025,109430.0,109420.0,3.39560751]
[1757004018766,0.9548025,109430.0,109420.0,3.39660751]
[1757004019064,0.9548025,109430.0,109420.0,2.53968751]
[1757004019267,0.9548025,109430.0,109420.0,3.39660751]
[1757004019566,0.9548025,109430.0,109420.0,2.53968751]
[1757004019763,0.6,109430.0,109420.0,3.99482001]
[1757004020270,0.9548025,109430.0,109420.0,2.44882501]
[1757004020456,0.9548025,109430.0,109420.0,3.64660751]
[1757004020660,0.9548025,109430.0,109420.0,2.53968751]
[1757004020858,0.9548025,109430.0,109420.0,3.39660751]
[1757004021369,0.61394,109430.0,109420.0,3.05574501]
[1757004021666,0.9548025,109430.0,109420.0,3.39660751]
[1757004022270,0.9548025,109430.0,109420.0,3.05574501]
[1757004022463,0.9548025,109430.0,109420.0,3.39660751]
[1757004023259,0.9548025,109430.0,109420.0,3.3250225]
[1757004024366,0.9775925,109430.0,109420.0,1.5819225]
[1757004025067,0.63673,109430.0,109420.0,1.5819225]
[1757004025366,0.9636525,109430.0,109420.0,1.5892725]
[1757004025566,0.62279,109430.0,109420.0,1.5892725]
[1757004025763,0.6,109430.0,109420.0,1.24841]
[1757004025970,0.6,109430.0,109420.0,1.930135]
[1757004026164,0.9408625,109430.0,109420.0,1.8392725]
[1757004026365,0.6,109430.0,109420.0,1.8392725]
[1757004026566,0.9548025,109430.0,109420.0,1.8319225]
[1757004027156,0.9408625,109430.0,109420.0,1.8392725]
[1757004027356,0.9548025,109430.0,109420.0,1.8319225]
[1757004028263,0.9548025,109430.0,109420.0,2.180135]
[1757004028264,0.6,109430.0,109420.0,2.180135]
[1757004028565,0.6,109430.0,109420.0,2.2715149]
[1757004029163,0.6,109430.0,109420.0,2.180135]
[1757004029363,0.6,109430.0,109420.0,2.180095]
[1757004029564,0.6,109430.0,109420.0,2.444395]
[1757004031364,0.6,109430.0,109420.0,2.444355]
[1757004033772,0.6,109430.0,109420.0,1.587515]
[1757004034272,0.6,109430.0,109420.0,2.444315]
[1757004034865,0.6,109430.0,109420.0,1.587515]
[1757004035066,0.6,109430.0,109420.0,2.444315]
[1757004037477,0.6,109430.0,109420.0,2.444275]
[1757004038387,0.6,109430.0,109420.0,1.587515]
[1757004038576,0.9775925,109430.0,109420.0,1.50516]
[1757004038776,0.9775925,109430.0,109420.0,1.5817225]
[1757004043473,0.9775925,109430.0,109420.0,0.7250025]
[1757004043674,0.9775925,109430.0,109420.0,1.5816425]
[1757004044378,0.9775925,109430.0,109420.0,0.7250025]
[1757004044577,0.9775925,109430.0,109420.0,0.38414]
[1757004044774,1.568455,109430.0,109420.0,0.02334]
[1757004044972,1.568455,109430.0,109420.0,0.87994]
[1757004045273,1.2275925,109430.0,109420.0,0.87994]
[1757004046579,2.7275925,109430.0,109420.0,0.87994]
[1757004046776,1.2275925,109430.0,109420.0,0.02334]
[1757004047079,1.2275925,109430.0,109420.0,0.8799]
[1757004047278,2.7275925,109430.0,109420.0,0.8799]
[1757004047475,2.7275925,109430.0,109420.0,1.2407]
[1757004047777,1.2275925,109430.0,109420.0,1.5815625]
[1757004048186,2.7275925,109430.0,109420.0,1.5815625]
[1757004048779,0.88673,109430.0,109420.0,1.5815625]
[1757004048980,1.2275925,109430.0,109420.0,1.5815625]
[1757004050280,0.88673,109430.0,109420.0,1.5815625]
[1757004050474,0.62279,109430.0,109420.0,1.922425]
[1757004050679,0.9636525,109430.0,109420.0,1.922425]
[1757004050978,0.9773825,109430.0,109420.0,1.922425]
[1757004051284,0.9773825,109430.0,109420.0,1.5815625]
[1757004051984,0.63652,109430.0,109420.0,1.922425]
[1757004052285,0.9773825,109430.0,109420.0,1.5815625]
[1757004052578,0.9773825,109430.0,109420.0,1.929775]
[1757004052579,0.62279,109430.0,109420.0,1.929775]
[1757004052887,0.9636525,109430.0,109420.0,1.929775]
[1757004053080,0.9636525,109430.0,109420.0,1.5889125]
[1757004055185,0.9636525,109430.0,109420.0,1.929775]
[1757004055985,0.9636525,109430.0,109420.0,1.24805]
[1757004056181,0.9636525,109430.0,109420.0,1.929775]
[1757004056776,0.9636525,109430.0,109420.0,1.073215]
[1757004056986,0.9636525,109430.0,109420.0,1.929695]
[1757004057482,0.9636525,109430.0,109420.0,1.5888325]
[1757004057687,0.9636525,109430.0,109420.0,1.929695]
[1757004058182,0.6,109430.0,109420.0,1.929695]
[1757004058387,0.6,109430.0,109420.0,2.179695]